Cogmind - Beta 10 @@@ ROGUE MODE // 2020.09.16 @ 19:18:35 Player: BluPotato Result: Destroyed by G-47 Trooper with Particle Gun Performance ------------- Evolutions (2) 1000 Regions Visited (4) 800 Robots Destroyed (7) 35 Value Destroyed (249) 249 Prototype IDs (0) 0 Alien Tech Used (0) 0 Bonus (200) 200 TOTAL SCORE: 2284 Bonus ------- Pacifist 200 Cogmind --------- Core Integrity 0/550 Matter 161/300 Energy 100/100 System Corruption 0% Temperature Cool (9) Movement Core (300) Ox5 Location -8/Materials Parts ------- > --- POWER (3) -------- (None) > --- PROPULSION (2) --- (None) > --- UTILITY (3) ------ Large Storage Unit > --- WEAPON (3) ------- (None) > --- INVENTORY (10) --- Small Storage Unit Shock Rifle Peak State ------------ > --- POWER ------------ (None) > --- PROPULSION ------- Light Treads > --- UTILITY ---------- Small Storage Unit Large Storage Unit Advanced Terrain Scanner > --- WEAPON ----------- Electrolaser Improved Datajack Axe > --- INVENTORY -------- Small Storage Unit [Rating: 15] Favorites ----------- Power Light Ion Engine Engine Light Ion Engine Propulsion Compact Wheel Treads Light Treads Leg Aluminum Leg Wheel Compact Wheel Utility Small Storage Unit Device Advanced Terrain Scanner Storage Small Storage Unit Processor Targeting Computer Weapon Small Laser Energy Gun Small Laser Energy Cannon Beam Cannon Launcher Grenade Launcher Slashing Weapon Axe Special Melee Weapon Improved Datajack Build | -11 -10 -9 -9 -8 ------- Run | Scr Mat Mat Min Mat Slots Evolved 4 | . . 2 . 2 Power 2 | . . 1 . 1 Propulsion . | . . . . . Utility 1 | . . . . 1 Weapon 1 | . . 1 . . Parts Attached 20 | 6 1 7 . 6 Power 2 | 1 . 1 . . Engine 2 | 1 . 1 . . Core . | . . . . . Reactor . | . . . . . Propulsion 4 | 2 . 1 . 1 Treads 1 | . . . . 1 Leg 1 | . . 1 . . Wheel 2 | 2 . . . . Hover . | . . . . . Flight . | . . . . . Utility 5 | 1 . 2 . 2 Device 1 | . . . . 1 Storage 2 | 1 . . . 1 Processor 2 | . . 2 . . Hackware . | . . . . . Protection . | . . . . . Artifact . | . . . . . Weapon 9 | 2 1 3 . 3 Energy Gun 5 | 2 . 2 . 1 Energy Cannon 1 | . 1 . . . Ballistic Gun . | . . . . . Ballistic Cannon . | . . . . . Launcher 1 | . . 1 . . Special Weapon . | . . . . . Impact Weapon . | . . . . . Slashing Weapon 1 | . . . . 1 Piercing Weapon . | . . . . . Special Melee Weapon 1 | . . . . 1 Unidentified Prototypes . | . . . . . Parts Lost 16 | . . 10 . 6 Power 2 | . . 2 . . Propulsion 3 | . . 2 . 1 Utility 3 | . . 1 . 2 Weapon 8 | . . 5 . 3 Highest Loss Streak 10 | . . 10 . 6 Average Slot Usage (%) 56 | . 85 74 22 40 Engine 6 | . 14 13 . . Treads 2 | . . . . 4 Wheel 8 | . 28 15 . . Device 2 | . . . . 5 Storage 12 | . 14 11 11 13 Processor 3 | . . 7 11 2 Energy Gun 10 | . 23 14 . 5 Energy Cannon 3 | . 4 8 . . Slashing Weapon 2 | . . . . 4 Special Melee Weapon 2 | . . . . 4 Naked Turns . | . . . . . Heaviest Build 28 | 10 12 16 4 28 Greatest Support 26 | 26 26 26 3 20 Greatest Overweight (x) 6 | . . 1 1 6 Average Overweight (x) . | . . . 1 1 Largest Inventory Capacity 12 | 6 6 6 6 12 Average Capacity 7 | 5 6 6 6 9 Most Carried 6 | 6 6 6 1 2 Average Carried 2 | 3 5 3 1 . Final Capacity 10 | 6 6 6 6 10 Final Carried 6 | 6 6 1 1 2 Class Distribution -------------------- 86% | Mutant 13% | Gunner Dominant Class ---------------- Mutant | -10/Materials Gunner | -9/Materials Mutant | -9/Mines Mutant | -8/Materials Resources | -11 -10 -9 -9 -8 ----------- Run | Scr Mat Mat Min Mat Matter Collected 190 | 140 . . . 50 Remotely . | . . . . . Salvage Created 209 | . . 159 . 50 Parts 7 | . . 5 . 2 Haulers Intercepted . | . . . . . Recyclers Shooed . | . . . . . Parts Field Recycled . | . . . . . Retrieved Matter . | . . . . . Parts Self-Destructed . | . . . . . Prevented . | . . . . . Kills | -11 -10 -9 -9 -8 ------- Run | Scr Mat Mat Min Mat Combat Hostiles Destroyed 6 | . . 5 . 1 Melee 1 | . . . . 1 Cannons 1 | . . 1 . . AOE 4 | . . 4 . . Classes Destroyed 4 | . . 4 . . Worker 1 | . . 1 . . Grunt 4 | . . 3 . 1 Brawler 1 | . . 1 . . Duelist 1 | . . 1 . . Best Kill Streak 6 | . . 6 . 1 Combat Bots Only 5 | . . 5 . 1 Max Kills in Single Turn 4 | . . 4 . 1 Gunslinging . | . . . . . Exploded 4 | . . 4 . . Melee 1 | . . . . 1 Uniques/NPCs Destroyed . | . . . . . Combat | -11 -10 -9 -9 -8 -------- Run | Scr Mat Mat Min Mat Damage Taken 1936 | . . 770 . 1166 Core 772 | . . 215 . 557 Absorbed by Shields . | . . . . . Core Remaining (%) 82 | 100 100 . 46 . Volleys Fired 8 | . . 8 . . Largest 3 | . . 3 . . Hottest 150 | . . 150 . . Shots Fired 18 | . . 18 . . Gun 9 | . . 9 . . Cannon 7 | . . 7 . . Launcher 2 | . . 2 . . Special . | . . . . . Kinetic . | . . . . . Thermal 16 | . . 16 . . Explosive 2 | . . 2 . . Electromagnetic . | . . . . . Robot Hit Streak 12 | . . 12 . . Robot Miss Streak 1 | . . 1 . . Penetration Max . | . . . . . Secondary Targets . | . . . . . Shots Hit Robots 30 | . . 15 . 15 Core Hits 13 | . . 11 . 2 Critical Hits . | . . . . . Critical Kills . | . . . . . Critical Parts Destroyed . | . . . . . Melee Attacks 18 | . . . . 18 Impact . | . . . . . Slashing 16 | . . . . 16 Piercing . | . . . . . Sneak Attacks . | . . . . . Combat Hostiles . | . . . . . Follow-up Attacks . | . . . . . Damage Inflicted 963 | . . 493 . 470 Guns 72 | . . 72 . . Cannons 89 | . . 89 . . Explosions 327 | . . 327 . . Melee 470 | . . . . 470 Ramming 5 | . . 5 . . Kinetic . | . . . . . Thermal 161 | . . 161 . . Explosive 327 | . . 327 . . Electromagnetic . | . . . . . Impact . | . . . . . Slashing 470 | . . . . 470 Piercing . | . . . . . Highest Corruption 5 | . 1 5 5 . Average Corruption 3 | . 1 5 5 . Corruption Purged . | . . . . . Effects 3 | . . 3 . . Message Errors 1 | . . 1 . . Energy Discharges 1 | . . 1 . . Parts Rejected 1 | . . 1 . . Overload Shots . | . . . . . Overflow Damage 34 | . . . . 34 Projectiles . | . . . . . Explosions . | . . . . . Melee 34 | . . . . 34 Knockbacks . | . . . . . Impact . | . . . . . Kinetic . | . . . . . Secondary . | . . . . . Self-Inflicted Damage 2 | . . 2 . . Shots . | . . . . . Rammed 3 | . . 2 . 1 Targets Rammed 3 | . . 2 . 1 Kicked . | . . . . . Crushed . | . . . . . Highest Temperature 387 | . . 387 . . Average Temperature 239 | . . 239 . . Received Heat Transfer 906 | . . 339 . 567 Effects 5 | . . 5 . . Shutdowns 1 | . . 1 . . Energy Bleed 1 | . . 1 . . Interference 2 | . . 2 . . Short Circuit 1 | . . 1 . . Siege Activations . | . . . . . Robots Corrupted . | . . . . . Combat Hostiles . | . . . . . Parts Fried . | . . . . . Impact Corruptions . | . . . . . Robots Melted . | . . . . . Combat Hostiles . | . . . . . Parts Melted 2 | . . 2 . . Heat Transferred 383 | . . 383 . . Parts Sabotaged . | . . . . . Parts Stolen . | . . . . . Parts Stripped . | . . . . . Power Chain Reactions . | . . . . . Missiles Intercepted . | . . . . . Alert | -11 -10 -9 -9 -8 ------- Run | Scr Mat Mat Min Mat Peak Influence 105 | . . 105 21 30 Initial 21 | . . . 21 7 Average 13 | . . 26 21 13 Maximum Alert Level . | . . . . . Low Security (%) 100 | 100 100 100 100 100 Level 1 . | . . . . . Level 2 . | . . . . . Level 3 . | . . . . . Level 4 . | . . . . . Level 5 . | . . . . . High Security . | . . . . . Max Security . | . . . . . Squads Dispatched 1 | . . 1 . . Investigation . | . . . . . Extermination . | . . . . . Reinforcement 1 | . . 1 . . Assault . | . . . . . Garrison . | . . . . . Intercept . | . . . . . Construction Impeded . | . . . . . Haulers Reinforced . | . . . . . Stealth | -11 -10 -9 -9 -8 --------- Run | Scr Mat Mat Min Mat Distress Signals 1 | . . . . 1 Communications Jammed . | . . . . . Distress Signals . | . . . . . Times Spotted 20 | . . 11 . 9 Peak Tracking Total 9 | . . 9 3 6 Tactical Retreats 1 | . . . . 1 Traps | -11 -10 -9 -9 -8 ------- Run | Scr Mat Mat Min Mat Traps Triggered 1 | . 1 . . . Indirectly . | . . . . . Trap Hack Attempts . | . . . . . Triggered . | . . . . . Disarmed . | . . . . . Reprogrammed . | . . . . . Reused . | . . . . . Traps Extracted . | . . . . . Installed . | . . . . . Triggered . | . . . . . Machines | -11 -10 -9 -9 -8 ---------- Run | Scr Mat Mat Min Mat Machines Disabled . | . . . . . Max in Single Turn . | . . . . . Machines Sabotaged . | . . . . . Garrisons Compromised . | . . . . . Overloaded Fab Kills . | . . . . . Fab Network Shutdowns . | . . . . . Hacking | -11 -10 -9 -9 -8 --------- Run | Scr Mat Mat Min Mat Machines Accessed 2 | . 1 . . 1 Terminals . | . . . . . Fabricators . | . . . . . Repair Stations . | . . . . . Recycling Units 2 | . 1 . . 1 Scanalyzers . | . . . . . Garrison Access . | . . . . . Total Hacks 6 | . 3 . . 3 Successful 2 | . . . . 2 Failed 4 | . 3 . . 1 Catastrophic . | . . . . . Database Lockouts . | . . . . . Manual . | . . . . . Terminals . | . . . . . Fabricators . | . . . . . Repair Stations . | . . . . . Recycling Units 6 | . 3 . . 3 Scanalyzers . | . . . . . Garrison Access . | . . . . . Terminal Hacks . | . . . . . Fabricator Hacks . | . . . . . Repair Station Hacks . | . . . . . Recycling Unit Hacks 2 | . . . . 2 Process 1 | . . . . 1 Retrieve Matter 1 | . . . . 1 Scanalyzer . | . . . . . Garrison Access Hacks . | . . . . . Unauthorized Hacks . | . . . . . Terminals . | . . . . . Fabricators . | . . . . . Repair Stations . | . . . . . Recycling Units . | . . . . . Scanalyzers . | . . . . . Garrison Access . | . . . . . Data Cores Recovered . | . . . . . Used . | . . . . . Hacking Detections 1 | . 1 . . . Full Trace Events . | . . . . . Feedback Events . | . . . . . Feedback Blocked . | . . . . . Robot Schematics Acquired . | . . . . . Robots Built . | . . . . . Matter . | . . . . . Time . | . . . . . Total Robot Build Rating . | . . . . . Part Schematics Acquired . | . . . . . Parts Built . | . . . . . Matter . | . . . . . Time . | . . . . . Total Part Build Rating . | . . . . . Parts Repaired . | . . . . . Time . | . . . . . Parts Recycled . | . . . . . Recycled Matter . | . . . . . Retrieved Matter . | . . . . . Retrieved Components . | . . . . . Parts Scanalyzed . | . . . . . Part Schematics Acquired . | . . . . . Parts Damaged . | . . . . . Bothacking | -11 -10 -9 -9 -8 ------------ Run | Scr Mat Mat Min Mat Used RIF Installer . | . . . . . Robots Hacked 1 | . . . . 1 Non-combat . | . . . . . Combat 1 | . . . . 1 Robot Hacks Applied 1 | . . . . 1 parse_system 1 | . . . . 1 Relay Couplers Released . | . . . . . Robots Rewired . | . . . . . Allies Hacked . | . . . . . Hacks Repelled . | . . . . . Allies | -11 -10 -9 -9 -8 -------- Run | Scr Mat Mat Min Mat Total Allies . | . . . . . Largest Group . | . . . . . Highest-Rated Group . | . . . . . Highest-Rated Ally . | . . . . . Total Orders . | . . . . . Ally Attacks . | . . . . . Total Damage . | . . . . . Kills . | . . . . . Allies Corrupted . | . . . . . Allies Melted . | . . . . . Intel | -11 -10 -9 -9 -8 ------- Run | Scr Mat Mat Min Mat Robot Analysis Total . | . . . . . Derelict Logs Recovered . | . . . . . Drone Launches . | . . . . . Drone Recoveries . | . . . . . Exploration | -11 -10 -9 -9 -8 ------------- Run | Scr Mat Mat Min Mat Turns Passed 476 | 59 63 120 22 212 Spaces Moved 319 | 51 65 87 23 93 Core 75 | 10 . 1 23 41 Treads 52 | . . . . 52 Legs 21 | . . 21 . . Wheels 171 | 41 65 65 . . Hover . | . . . . . Flight . | . . . . . Fastest Speed 50 | 50 90 90 100 100 Average Speed 111 | 80 90 97 100 159 Slowest Speed 350 | 90 90 120 100 350 Overloaded Moves . | . . . . . Propulsion Burnouts . | . . . . . Robots Hopped . | . . . . . Cave-ins Triggered . | . . . . . Exploration Rate (%) 12 | 3 16 18 16 10 Regions Visited 4 Branch Regions 1 Pre-discovered Areas . | . . . . . Known Exits Taken . | . . . . . Unknown Exits Taken 4 | 1 1 1 1 . Scrap Searched . | . . . . . Spaces Dug . | . . . . . Terrain Destroyed 12 | . . 12 . . Melee . | . . . . . Projectile . | . . . . . AOE 12 | . . 12 . . Terrain Rammed . | . . . . . Walls Destroyed . | . . . . . Machines Disabled . | . . . . . Actions | -11 -10 -9 -9 -8 --------- Run | Scr Mat Mat Min Mat Total 390 | 68 69 105 22 126 Wait . | . . . . . Move 316 | 50 64 87 22 93 Hop . | . . . . . Pick Up 23 | 12 2 2 . 7 Fast Attach . | . . . . . Attach 19 | 6 . 7 . 6 Detach . | . . . . . Swap 1 | . 1 . . . Drop 3 | . 2 . . 1 Fire 8 | . . 8 . . Melee 18 | . . . . 18 Ram 1 | . . . . 1 Kick 1 | . . 1 . . Crush . | . . . . . Escape Stasis . | . . . . . Rewire . | . . . . . Trap . | . . . . . Miscellaneous . | . . . . . Route ------- -11/Scrapyard -10/Materials -9/Materials -9/Mines -8/Materials History --------- Turn | Location | Event 10 | -11/Scrapyard | Discovered new exit (range 16) 60 | -11/Scrapyard | Entered Materials 112 | -10/Materials | Discovered new exit (range 12) 123 | -10/Materials | Entered another Materials area 123 | -9/Materials | Evolved 2 slots: Power x1, Weapon x1 225 | -9/Materials | Discovered new exit (range 14) 227 | -9/Materials | Core integrity fell below 50% 243 | -9/Materials | Entered Mines 244 | -9/Mines | Assembled infested the area 249 | -9/Mines | Assisted by a Guerilla fighting off Assembled 257 | -9/Mines | Discovered new exit (range 9) 260 | -9/Mines | Lost 10 parts (2p2n1u5w) 265 | -9/Mines | Entered Materials 265 | -8/Materials | Evolved 2 slots: Power x1, Utility x1 453 | -8/Materials | Core integrity fell below 50% 461 | -8/Materials | Core integrity fell below 20% 477 | -8/Materials | Destroyed by G-47 Trooper with Particle Gun Last Messages --------------- Acquired Sml. Storage Unit. Acquired Lrg. Storage Unit. W-25 Informer sends out distress signal. Jacked G-47 Trooper... >>parse_system Reading system data... Jacked G-47 Trooper... Imp. Datajack destroyed. Electrolaser destroyed. Destroyed Particle Gun. Lgt. Treads destroyed. Adv. Terrain Scanner destroyed. G-50 Soldier destroyed. Axe destroyed. Slammed into Y-45 Defender. Acquired 50 matter. Sml. Storage Unit destroyed. R-06 Scavenger collects Hvy. Laser. Acquired Shock Rifle. R-06 Scavenger collects Lgt. Angular Momentum Engine. Map ----- +----------------------------------------------------+ | ?????????????????????????????????????????????????? | | ?????????????????????????????????????????????????? | | ??????????????????????????????????????????????? ?? | | ???????????????????? ? ???????#?? ???????????????? | | ???????????????????????????????????????????? #???# | | ???????????????????? ?#???????????????????" #???? | | ?????????????????????? ?????????????? ?????" # ??# | | ???????????????????????????? ????????????"" #?? + | | ?????????????????#????????#???#??????????? ?? # | | ??????????????????????????? #############+#### #? | | ??????????????"???#?#????????# / ## | | ???????????????????????"?????# /! ! | | ????????????????#?????????? ?# | | ????????????????????#? ??? ?+ | | ?????????????????????????????# ##### | | ???????????? ??????????????# !!!###??#? | | ???????"???????????????"?????# !!!""##??? | | ?????????????????#????????? ?# """ !!!Y"#???# | | ??????????????????############ """ ""##?#? | | ?????????+? ??????# # """ ####### | | ??????????????????# g g # """ | | ????????????????#?# """ """ r | | ??????????????????# """ """ # ! | | ??????????????????# """Y"""g# # ########+ | | ??????????????????# gg # #! !#?????? | | ??????????????????# @ # # !#??#???"" | | ??????????????????# !# ##! !!##?????""" | | ??????????#???????########### #######????? """ | | ????????????????????????? #??????????# | | ????????????????????????###########????????#?? [[[ | | ??????????? ???????????????????????#???#???????[[[ | | ?????????????????#???????????#????#?????????????[ | | ?????????????????????#??????????????#????????????? | | ???????????????????????#???#????##???????????????? | | ???????????????????#??#??????????????????????????? | | ????????????????????#???#??#???#????#????????????? | | | | | | | | | | | | | | | | | | | | | | | | | | | | | +----------------------------------------------------+ Best States ------------- Heat Dissipation 31 Energy Generation 15 Energy Capacity 150 Matter Stores 180 Matter Capacity 300 Sight Range 16 Terrain Scan Range 20 Terrain Scan Density 10 Evasion (%) 50 Targeting Accuracy 5 Recoil Reduction 1 Item Schematics ----------------- None Robot Schematics ------------------ None Fabricated ------------ Nothing Alien Tech Used ----------------- None Achievements -------------- I Survived The Infestation Challenges ------------ None Game ------ Seed AlertNodeChronowheel Manual? 0 Play Time 00:13:19 Cumulative 1.9 hours Start 2020.09.16 @ 19:08:03 End 2020.09.16 @ 19:18:35 Sessions 1 Manual Loads 0 Difficulty Rogue Special Mode None Game No. 16 Rogue 16 Adventurer 0 Explorer 0 Win Type - Total 0 Types 0/0/0/0/0/0/0/0/0 Lore% 1 Gallery% 10 Achievement% 3 Wizard Run 0 Options --------- ASCII 0 Keyboard 0 Movement Mouse Keybinds 0 Fullscreen 1 Font 18/SmallcapsGlow Map View 76x50 Tactical HUD 0 Map Filters NONE Filters NONE Steam 1 RUN: 0e82ed9a-7317-4965-b2e2-b42fbbedc55c